bitfinex-derivatives/quotes_BTCF0:USTF0_20250814
["timestamp","ask_amount","ask_price","bid_price","bid_amount"]
[1755169966563,1.1473492,120910.0,120900.0,1.02743438]
[1755169966763,1.1473492,120910.0,120900.0,1.02743418]
[1755169967676,1.62456569,120910.0,120900.0,1.02743418]
[1755169967872,1.1473492,120910.0,120900.0,1.02743418]
[1755169968866,1.1473492,120910.0,120900.0,1.02743446]
[1755169970476,1.1473492,120910.0,120900.0,1.02731446]
[1755169970671,1.1473492,120910.0,120900.0,0.89496446]
[1755169970976,1.1473492,120910.0,120900.0,0.90781446]
[1755169971176,1.1473492,120910.0,120900.0,0.96725446]
[1755169971377,1.1473492,120910.0,120900.0,1.02731446]
[1755169971679,1.1473492,120910.0,120900.0,1.02731466]
[1755169971977,1.62456569,120910.0,120900.0,0.02192736]
[1755169972173,2.41492569,120910.0,120900.0,0.02192736]
[1755169973077,2.41488569,120910.0,120900.0,0.01792736]
[1755169973265,2.41488569,120910.0,120900.0,0.01992736]
[1755169974471,1.62456569,120910.0,120900.0,0.10060466]
[1755169974672,1.62456569,120910.0,120900.0,0.23629466]
[1755169978175,1.1473492,120910.0,120900.0,0.20802466]
[1755169978370,1.62456569,120910.0,120900.0,0.17337466]
[1755169978772,1.62456569,120910.0,120900.0,0.15408466]
[1755169978975,1.62456569,120910.0,120900.0,0.11287466]
[1755169979280,1.62456569,120910.0,120900.0,0.10060466]
[1755169980071,1.62456569,120910.0,120900.0,0.11287466]
[1755169980279,1.62456569,120910.0,120900.0,0.04948736]
[1755169980778,1.62456569,120910.0,120900.0,0.13216466]
[1755169980976,1.62456569,120910.0,120900.0,0.04948736]
[1755169981681,1.62456569,120910.0,120900.0,0.15361736]
[1755169982074,1.62456569,120910.0,120900.0,0.12534736]
[1755169982274,1.62456569,120910.0,120900.0,0.04948736]
[1755169983080,1.62456569,120910.0,120900.0,0.01792736]
[1755169983377,0.1322841,120890.0,120880.0,1.1737964]
[1755169983577,0.9208141,120890.0,120880.0,1.1737964]
[1755169984278,0.83813,120890.0,120880.0,1.1737964]
[1755169984785,0.9208141,120890.0,120880.0,1.1737964]
[1755169985088,0.9208141,120890.0,120880.0,1.1777964]
[1755169985791,0.83813,120890.0,120880.0,1.1807964]
[1755169986090,0.83813,120890.0,120880.0,1.1767964]
[1755169986479,0.83262,120890.0,120880.0,1.1787964]
[1755169986678,0.82381,120890.0,120880.0,1.1787964]
[1755169988291,0.79023,120890.0,120880.0,1.1787964]
[1755169988491,0.74007,120890.0,120880.0,1.65601289]
[1755169988682,0.74007,120890.0,120880.0,1.1787964]
[1755169988987,0.76239,120890.0,120880.0,1.65585289]
[1755169989194,0.82381,120890.0,120880.0,1.65585289]
[1755169989486,0.76239,120890.0,120880.0,0.86597289]
[1755169989788,0.3608,120890.0,120880.0,1.65661289]
[1755169990174,0.3608,120890.0,120880.0,0.86677289]
[1755169990386,0.3608,120890.0,120880.0,1.65657289]
[1755169991090,0.3608,120890.0,120880.0,1.65577289]
[1755169991388,0.3608,120900.0,120890.0,0.3837297]
[1755169991686,0.41869,120910.0,120900.0,0.0949473]
[1755169991875,0.41869,120910.0,120900.0,1.48534379]
[1755169992779,0.49858,120910.0,120900.0,1.48634379]
[1755169993089,0.52641,120910.0,120900.0,0.2193673]
[1755169993283,0.52641,120910.0,120900.0,1.0090873]
[1755169993475,0.9786905,120910.0,120900.0,0.2193673]
[1755169993880,0.9786905,120910.0,120900.0,1.0100073]
[1755169994080,0.89602,120910.0,120900.0,1.0100073]
[1755169994282,0.9786904,120910.0,120900.0,1.0100073]
[1755169994681,0.89602,120910.0,120900.0,1.0100073]
[1755169994884,0.9786905,120910.0,120900.0,1.0100073]
[1755169995578,0.89602,120910.0,120900.0,1.0100073]
[1755169995782,0.8817,120910.0,120900.0,0.69758379]
[1755169995989,0.8817,120910.0,120900.0,1.48714379]
[1755169997295,0.82028,120910.0,120900.0,1.48714379]
[1755169997492,0.84812,120910.0,120900.0,1.48714379]
[1755169997698,0.8817,120910.0,120900.0,1.48714379]
[1755169997994,0.89602,120910.0,120900.0,1.48710379]
[1755169998489,0.89602,120910.0,120900.0,1.0098873]
[1755170001187,1.45590699,120910.0,120900.0,0.09760492]
[1755170001384,1.47595659,120910.0,120900.0,0.88688492]
[1755170002200,1.47595659,120910.0,120900.0,0.09760492]
[1755170002400,1.47595659,120910.0,120900.0,0.88688492]
[1755170002598,0.9160696,120910.0,120900.0,0.99426492]
[1755170002899,0.9786904,120910.0,120900.0,1.02253492]
[1755170003491,0.9786904,120910.0,120900.0,0.94032492]
[1755170004097,0.9786904,120910.0,120900.0,1.0092173]
[1755170006603,0.89602,120910.0,120900.0,1.0092173]
[1755170007192,0.9786904,120910.0,120900.0,1.0092173]
[1755170008897,0.89602,120910.0,120900.0,1.0092173]
[1755170009400,0.9786904,120910.0,120900.0,1.0092173]
[1755170010595,0.9782304,120910.0,120900.0,1.0092173]
[1755170011804,0.9782304,120910.0,120900.0,0.2199773]
[1755170012104,0.9782304,120910.0,120900.0,1.0088973]
[1755170013301,0.89556,120910.0,120900.0,1.0088173]
[1755170013497,0.82028,120910.0,120900.0,1.48603379]
[1755170013797,0.82028,120910.0,120900.0,1.55983218]
[1755170013798,0.88244,120910.0,120900.0,1.55983218]
[1755170014007,0.88244,120910.0,120900.0,0.77111218]
[1755170014197,0.88244,120910.0,120900.0,1.55983218]
[1755170014399,0.88244,120910.0,120900.0,1.48591379]
[1755170014598,0.88749,120910.0,120900.0,1.48591379]
[1755170015406,0.88749,120910.0,120900.0,1.55983218]
[1755170016506,0.88749,120910.0,120900.0,1.08261569]
[1755170016806,0.88749,120910.0,120900.0,1.55971218]
[1755170018310,0.88749,120910.0,120900.0,1.48579379]
[1755170020510,0.88749,120910.0,120900.0,1.0085773]
[1755170020808,0.88749,120910.0,120900.0,1.48579379]
[1755170021209,0.88749,120910.0,120900.0,0.002]
[1755170021210,1.47307699,120910.0,120900.0,0.002]
[1755170021704,2.26135699,120910.0,120900.0,0.002]
[1755170021911,2.26135699,120910.0,120900.0,0.0846772]
[1755170022111,1.7841405,120910.0,120900.0,0.0846772]
[1755170022305,1.7841405,120910.0,120900.0,0.1154172]
[1755170022506,0.8797805,120910.0,120900.0,0.0846772]
[1755170022806,0.9932505,120910.0,120900.0,0.9463972]
[1755170023113,0.9932505,120910.0,120900.0,0.9274072]
[1755170023503,0.9764304,120910.0,120900.0,1.0092272]
[1755170023912,0.88063,120910.0,120900.0,1.0092272]
[1755170024113,0.9764304,120910.0,120900.0,0.69820369]
[1755170024314,0.9764304,120910.0,120900.0,1.0091472]
[1755170025216,0.9764304,120910.0,120900.0,1.02149859]
[1755170026414,0.89376,120910.0,120900.0,0.23333859]
[1755170026606,0.77949,120910.0,120900.0,1.02137859]
[1755170026910,0.88063,120910.0,120900.0,1.02137859]
[1755170027213,0.9633004,120910.0,120900.0,1.02137859]
[1755170027414,0.9764304,120910.0,120900.0,1.02137859]
[1755170027711,0.9764304,120910.0,120900.0,1.02137869]
[1755170028115,0.89376,120910.0,120900.0,1.02137869]
[1755170028314,0.89376,120910.0,120900.0,1.09529708]
[1755170029414,0.9764304,120910.0,120900.0,1.09529708]
[1755170030813,0.88568,120910.0,120900.0,1.09529708]
[1755170031112,0.88063,120910.0,120900.0,0.30725708]
[1755170031314,0.88063,120910.0,120900.0,1.09505708]
[1755170031815,0.9633004,120910.0,120900.0,1.09505708]
[1755170032012,0.9764304,120910.0,120900.0,1.02113869]
[1755170032517,0.9764304,120910.0,120900.0,0.99202869]
[1755170032716,0.9764304,120910.0,120900.0,1.02113869]
[1755170033614,0.9764304,120910.0,120900.0,1.02114299]
[1755170033816,0.9764304,120910.0,120900.0,1.02102299]
[1755170034422,0.9764304,120910.0,120900.0,0.20133299]
[1755170034624,0.9764304,120910.0,120900.0,1.01675299]
[1755170036528,0.9764304,120910.0,120900.0,0.95674299]
[1755170036735,0.9764304,120910.0,120900.0,0.88447299]
[1755170037633,0.9764304,120910.0,120900.0,0.91353299]
[1755170037829,0.9764304,120910.0,120900.0,0.98492299]
[1755170038130,0.77949,120910.0,120900.0,0.70251948]
[1755170038340,0.77949,120910.0,120900.0,1.48987948]
[1755170038535,0.77949,120910.0,120900.0,0.70251948]
[1755170038837,0.77949,120910.0,120900.0,1.48987948]
[1755170039134,0.83976,120910.0,120900.0,1.48987948]
[1755170040133,0.83976,120910.0,120900.0,1.01266299]
[1755170040329,0.88089,120910.0,120900.0,1.48987948]
[1755170040529,0.88528,120910.0,120900.0,1.48987948]
[1755170040832,0.8923,120910.0,120900.0,1.48987948]
[1755170042127,0.79875,120910.0,120900.0,1.56363787]
[1755170042534,0.8539,120910.0,120900.0,1.56363787]
[1755170042727,0.88089,120910.0,120900.0,1.56363787]
[1755170043333,0.82062,120910.0,120900.0,1.56363787]
[1755170043730,0.88089,120910.0,120900.0,1.56363787]
[1755170044340,0.45982,120910.0,120900.0,1.56363787]
[1755170044638,0.43795,120910.0,120900.0,1.56363787]
[1755170044935,0.46494,120910.0,120900.0,1.56363787]
[1755170045146,0.49822,120910.0,120900.0,1.56363787]
[1755170045330,0.52009,120910.0,120900.0,1.56363787]
[1755170045635,0.52448,120910.0,120900.0,1.56363787]
[1755170047137,0.52009,120910.0,120900.0,1.56363787]
[1755170047729,0.43795,120910.0,120900.0,1.56363787]
[1755170048235,0.41869,120910.0,120900.0,1.48971948]
[1755170048439,0.48681,120910.0,120900.0,1.48971948]
[1755170048637,0.52448,120910.0,120900.0,1.48971948]
[1755170050140,0.52448,120910.0,120900.0,1.01250299]
[1755170050141,0.5315,120910.0,120900.0,1.01250299]
[1755170050333,0.5315,120910.0,120900.0,1.48911948]
[1755170050534,0.6141705,120910.0,120900.0,1.48907948]
[1755170050734,0.5315,120910.0,120900.0,1.48907948]
[1755170050941,0.5315,120910.0,120900.0,1.01186299]
[1755170051443,0.5315,120910.0,120900.0,0.22530299]
[1755170051642,0.5315,120910.0,120900.0,1.01186299]
[1755170053144,0.5315,120910.0,120900.0,1.0118589]
[1755170054438,0.9749705,120910.0,120900.0,0.2252989]
[1755170054632,1.45218699,120910.0,120900.0,0.883309]
[1755170054837,0.9749705,120910.0,120900.0,0.883309]
[1755170055037,0.9749705,120910.0,120900.0,0.930079]
[1755170055339,0.9749705,120910.0,120900.0,0.990089]
[1755170055542,0.9749705,120910.0,120900.0,1.011579]
[1755170055746,0.9749705,120910.0,120900.0,0.225299]
[1755170055946,0.88791,120910.0,120900.0,0.70251549]
[1755170056146,0.9705805,120910.0,120900.0,1.48871549]
[1755170056549,0.8923,120910.0,120900.0,1.011499]
[1755170056746,0.9749705,120910.0,120900.0,1.011499]
[1755170057251,0.8923,120910.0,120900.0,1.011499]
[1755170057943,0.9749705,120910.0,120900.0,1.011499]
[1755170058451,0.8923,120910.0,120900.0,1.011499]
[1755170060741,0.9749705,120910.0,120900.0,1.011499]
[1755170060942,0.8923,120910.0,120900.0,1.011499]
[1755170061348,0.9749705,120910.0,120900.0,1.011499]
[1755170061747,0.8923,120910.0,120900.0,1.011499]
[1755170062951,0.77949,120910.0,120900.0,1.48827549]
[1755170063152,0.77949,120910.0,120900.0,1.48823549]
[1755170063353,0.88089,120910.0,120900.0,1.48823549]
[1755170065350,0.88463,120910.0,120900.0,1.48823549]
[1755170066453,0.88463,120910.0,120900.0,1.011019]
[1755170068048,0.82062,120910.0,120900.0,1.011019]
[1755170068254,0.88308,120910.0,120900.0,1.011019]
[1755170068648,0.88682,120910.0,120900.0,1.011019]
[1755170070056,0.88682,120910.0,120900.0,1.08493739]
[1755170070253,0.8928,120910.0,120900.0,1.08493739]
[1755170070663,0.8928,120910.0,120900.0,0.225299]
[1755170070856,0.8928,120910.0,120900.0,1.01089506]
[1755170071049,0.9754705,120910.0,120900.0,1.01089506]
[1755170071255,0.9754705,120910.0,120900.0,1.08530542]
[1755170072656,0.8928,120910.0,120900.0,1.08530542]
[1755170072960,0.9754705,120910.0,120900.0,1.06654542]
[1755170073263,0.9754705,120910.0,120900.0,1.02567542]
[1755170073447,0.8928,120910.0,120900.0,1.08357542]
[1755170073650,0.9754705,120910.0,120900.0,0.29853542]
[1755170073961,0.8928,120910.0,120900.0,1.08357542]
[1755170076159,0.9754705,120910.0,120900.0,1.08357542]
[1755170076462,0.8928,120910.0,120900.0,1.00916506]
[1755170076662,0.9754705,120910.0,120900.0,1.00916506]
[1755170078558,0.8928,120910.0,120900.0,1.00916506]
[1755170079960,0.9754705,120910.0,120900.0,1.00916506]
[1755170080662,0.8928,120910.0,120900.0,1.00916506]
[1755170081765,0.9754705,120910.0,120900.0,1.00916506]
[1755170082465,0.8928,120910.0,120900.0,1.00916506]
[1755170082957,0.9754705,120910.0,120900.0,1.00916506]
[1755170084562,0.9762705,120910.0,120900.0,0.01462776]
[1755170084873,0.9762705,120910.0,120900.0,0.09730516]
[1755170084874,0.9754705,120910.0,120900.0,0.09730516]
[1755170085057,0.9754705,120910.0,120900.0,0.89438516]
[1755170085253,0.9754705,120910.0,120900.0,0.10900516]
[1755170085457,0.9754705,120910.0,120900.0,0.12631516]
[1755170085759,0.9754705,120910.0,120900.0,0.95485516]
[1755170085959,0.9754705,120910.0,120900.0,0.95385516]
[1755170086261,0.9754705,120910.0,120900.0,1.01908516]
[1755170086455,0.9754705,120910.0,120900.0,0.99276516]
[1755170086661,0.9754705,120910.0,120900.0,1.01896516]
[1755170086863,0.9754705,120910.0,120900.0,1.01844516]
[1755170087368,0.8928,120910.0,120900.0,1.01832516]
[1755170087565,0.8928,120910.0,120900.0,0.29653552]
[1755170087764,0.88906,120910.0,120900.0,1.09273552]
[1755170088069,0.8928,120910.0,120900.0,1.09265552]
[1755170088665,0.8928,120910.0,120900.0,0.29653552]
[1755170088868,0.9754705,120910.0,120900.0,1.09253552]
[1755170089067,0.8928,120910.0,120900.0,1.09253552]
[1755170089374,0.8928,120910.0,120900.0,1.09353552]
[1755170089669,0.8928,120910.0,120900.0,1.09453552]
[1755170094671,0.8928,120910.0,120900.0,1.02012516]
[1755170095780,0.82062,120910.0,120900.0,0.70134165]
[1755170096076,0.79875,120910.0,120900.0,1.49406165]
[1755170096277,0.88068,120910.0,120900.0,0.77575201]
[1755170096478,0.88068,120910.0,120900.0,1.56827201]
[1755170096684,0.88378,120910.0,120900.0,1.56827201]
[1755170098078,0.88378,120910.0,120900.0,1.49386165]
[1755170100578,0.88068,120910.0,120900.0,1.49246165]
[1755170101982,0.77949,120910.0,120900.0,1.49246165]
[1755170102277,0.77949,120910.0,120900.0,0.70134165]
[1755170102483,0.41869,120910.0,120900.0,1.49166165]
[1755170102665,0.41869,120910.0,120900.0,0.77575201]
[1755170102869,0.45709,120910.0,120900.0,0.77575201]
[1755170103066,0.51789,120910.0,120900.0,1.56595201]
[1755170103482,0.51789,120910.0,120900.0,1.49154165]
[1755170104381,0.51789,120910.0,120900.0,0.70134165]
[1755170104682,0.51789,120910.0,120900.0,1.49142165]
[1755170104882,0.51789,120910.0,120900.0,1.56583201]
[1755170106083,0.48464,120910.0,120900.0,1.56583201]
[1755170106382,0.45709,120910.0,120900.0,1.49142165]
[1755170106880,0.41869,120910.0,120900.0,1.49142165]
[1755170107378,0.05789,120910.0,120900.0,1.6137685]
[1755170107788,0.05789,120910.0,120900.0,1.92595201]
[1755170107975,0.0166672,120910.0,120900.0,1.92595201]
[1755170108178,0.3608,120930.0,120920.0,0.2119637]
[1755170108382,0.3608,120930.0,120920.0,1.49144795]
[1755170109682,0.3618,120930.0,120920.0,1.49144795]
[1755170110382,0.3628,120930.0,120920.0,1.49965045]
[1755170111084,0.3618,120930.0,120920.0,1.49965045]
[1755170111282,0.3628,120930.0,120920.0,1.49965045]
[1755170112488,0.3618,120930.0,120920.0,1.49873045]
[1755170112682,0.3628,120930.0,120920.0,1.49873045]
[1755170113188,0.3608,120930.0,120920.0,1.5731085]
[1755170113379,0.3608,120930.0,120920.0,1.5781085]
[1755170113781,0.3608,120930.0,120920.0,1.5771085]
[1755170114779,0.3608,120930.0,120920.0,1.50273045]
[1755170116291,0.3608,120930.0,120920.0,1.57696401]
[1755170117595,0.38835,120930.0,120920.0,1.57696401]
[1755170118792,0.38835,120930.0,120920.0,1.09974752]
[1755170118982,0.46,120930.0,120920.0,1.09154502]
[1755170119182,0.5726069,120930.0,120920.0,0.10029146]
[1755170119383,0.48915,120930.0,120920.0,0.10029146]
[1755170119582,0.48915,120930.0,120920.0,1.02575146]
[1755170119793,0.48915,120930.0,120920.0,0.22959146]
[1755170119993,0.47133,120930.0,120920.0,1.05683146]
[1755170120295,0.37807,120930.0,120920.0,1.0442037]
[1755170120491,0.3992,120930.0,120920.0,0.29119726]
[1755170120793,0.48915,120930.0,120920.0,1.59689375]
[1755170121388,0.48915,120930.0,120920.0,1.59701375]
[1755170121582,0.47133,120930.0,120920.0,1.59701375]
[1755170121786,0.50410947,120940.0,120930.0,0.07683]
[1755170121787,0.48628947,120940.0,120930.0,0.07683]
[1755170121981,0.48628947,120940.0,120930.0,0.68917329]
[1755170122186,0.48628947,120940.0,120930.0,1.51821329]
[1755170122592,0.41868,120940.0,120930.0,1.51845329]
[1755170122891,0.41868,120940.0,120930.0,1.51841329]
[1755170123394,0.41868,120940.0,120930.0,1.52041329]
[1755170123594,0.41868,120940.0,120930.0,1.52141329]
[1755170124796,0.05788,120940.0,120930.0,1.52141329]
[1755170125685,0.05788,120940.0,120930.0,1.52241329]
[1755170126092,0.05788,120940.0,120930.0,1.59664685]
[1755170126289,0.05788,120940.0,120930.0,1.59964685]
[1755170126990,0.05788,120940.0,120930.0,1.05697329]
[1755170127192,0.05788,120940.0,120930.0,1.88489329]
[1755170127388,0.05788,120940.0,120930.0,1.95912685]
[1755170128286,0.05788,120940.0,120930.0,1.95712685]
[1755170128596,0.05788,120940.0,120930.0,1.95312685]
[1755170128783,0.05788,120940.0,120930.0,1.12820685]
[1755170129094,0.05788,120940.0,120930.0,1.95544685]
[1755170130085,0.05788,120940.0,120930.0,1.95644685]
[1755170130395,0.05788,120940.0,120930.0,1.95744685]
[1755170130797,0.05788,120940.0,120930.0,1.12820685]
[1755170130999,0.52517784,120960.0,120950.0,0.2098932]
[1755170131194,2.05436784,120960.0,120950.0,1.51342969]
[1755170132500,2.05436784,120960.0,120950.0,1.51542969]
[1755170133000,2.05436784,120960.0,120950.0,1.0382132]
[1755170133194,2.05436784,120960.0,120950.0,1.51542969]
[1755170133498,2.05436784,120960.0,120950.0,1.51642969]
[1755170133799,2.03723784,120960.0,120950.0,1.51642969]
[1755170134187,2.03723784,120960.0,120950.0,0.69010969]
[1755170134388,2.03723784,120960.0,120950.0,1.51526969]
[1755170134587,2.05436784,120960.0,120950.0,1.51526969]
[1755170134789,1.97192,120960.0,120950.0,1.51526969]
[1755170134989,1.87855,120960.0,120950.0,0.69010969]
[1755170135193,0.48905,120970.0,120960.0,0.12725]
[1755170135394,0.48905,120970.0,120960.0,1.51190289]
[1755170135594,0.48905,120970.0,120960.0,1.51194289]
[1755170135595,1.98905,120970.0,120960.0,1.51194289]
[1755170136291,0.3998,120970.0,120960.0,0.68710289]
[1755170136503,0.45986,120970.0,120960.0,1.51138289]
[1755170136802,0.48905,120970.0,120960.0,1.51338289]
[1755170137303,0.41186,120970.0,120960.0,1.51338289]
[1755170137494,0.45986,120970.0,120960.0,1.51338289]
[1755170138390,0.48905,120970.0,120960.0,1.51338289]
[1755170138898,0.48905,120970.0,120960.0,1.0358064]
[1755170139099,0.48905,120970.0,120960.0,1.0343664]
[1755170139296,0.48905,120970.0,120960.0,1.0373664]
[1755170139598,0.55491107,120970.0,120960.0,1.0373664]
[1755170139999,1.03292756,120970.0,120960.0,0.9097164]
[1755170140206,1.11555716,120970.0,120960.0,0.003]
[1755170140403,0.2108865,120960.0,120950.0,0.0826388]
[1755170140603,1.04890299,120960.0,120950.0,0.9058788]
[1755170140906,0.5724865,120960.0,120950.0,0.0826388]
[1755170141400,0.5724865,120960.0,120950.0,0.9061588]
[1755170141799,0.5724865,120960.0,120950.0,0.9101588]
[1755170142098,0.5724865,120960.0,120950.0,0.0866388]
[1755170142403,0.5724865,120960.0,120950.0,0.9098788]
[1755170142596,1.04970299,120960.0,120950.0,0.9098788]
[1755170143100,1.04970299,120960.0,120950.0,0.0866388]
[1755170143303,1.04970299,120960.0,120950.0,0.9117588]
[1755170144501,1.04890299,120960.0,120950.0,0.9117588]
[1755170145306,1.04890299,120960.0,120950.0,0.0886388]
[1755170145497,1.04890299,120960.0,120950.0,0.92382633]
[1755170146409,0.5716865,120960.0,120950.0,0.92382633]
[1755170146706,1.04890299,120960.0,120950.0,0.92382633]
[1755170147004,0.5716865,120960.0,120950.0,0.92382633]
[1755170147607,0.48905,120960.0,120950.0,1.05107633]
[1755170149297,0.48905,120960.0,120950.0,1.05107795]
[1755170151505,0.48905,120960.0,120950.0,0.22851795]
[1755170151802,0.48905,120960.0,120950.0,1.04891795]
[1755170152817,0.5716865,120960.0,120950.0,0.12941795]
[1755170153106,1.21425499,120960.0,120950.0,0.01862915]
[1755170153300,0.7370385,120960.0,120950.0,0.01862915]
[1755170153501,0.5716865,120960.0,120950.0,0.10127245]
[1755170153810,1.04890299,120960.0,120950.0,0.10127245]
[1755170154011,0.5716865,120960.0,120950.0,1.05434245]
[1755170154307,0.5726865,120960.0,120950.0,1.05266245]
[1755170154908,0.5726865,120960.0,120950.0,0.22706245]
[1755170155210,0.5716865,120960.0,120950.0,0.22306245]
[1755170155511,0.5746865,120960.0,120950.0,1.04842245]
[1755170155897,0.5736865,120960.0,120950.0,0.22306245]
[1755170156098,0.5736865,120960.0,120950.0,1.04818245]
[1755170157014,0.5726865,120960.0,120950.0,1.04818245]
[1755170158800,1.04990299,120960.0,120950.0,1.04818245]
[1755170159216,0.5726865,120960.0,120950.0,1.04818245]
[1755170160324,1.04990299,120960.0,120950.0,0.09527245]
[1755170160710,1.04990299,120960.0,120950.0,0.91827245]
[1755170161216,1.04990299,120960.0,120950.0,0.09527245]
[1755170161414,1.04990299,120960.0,120950.0,0.91827245]
[1755170161907,1.04990299,120960.0,120950.0,1.04677245]
[1755170162213,0.5726865,120960.0,120950.0,0.22377245]
[1755170162411,0.5726865,120960.0,120950.0,1.04701245]
[1755170162814,1.04990299,120960.0,120950.0,1.04701245]
[1755170163709,0.5726865,120960.0,120950.0,1.04701245]
[1755170163910,1.04990299,120960.0,120950.0,1.04701245]
[1755170164618,1.04990299,120960.0,120950.0,1.04589245]
[1755170166604,1.04990299,120960.0,120950.0,1.04601245]
[1755170168820,1.04990299,120960.0,120950.0,1.04603341]
[1755170170013,0.5726865,120960.0,120950.0,1.04603341]
[1755170170213,0.5726865,120960.0,120950.0,1.04427341]
[1755170170414,0.5726865,120960.0,120950.0,0.22379341]
[1755170170611,0.5726865,120960.0,120950.0,1.04331341]
[1755170170811,1.04990299,120960.0,120950.0,1.04331341]
[1755170171812,0.5726865,120960.0,120950.0,1.04331341]
[1755170172010,1.04990299,120960.0,120950.0,1.04331341]
[1755170172616,0.5726865,120960.0,120950.0,1.04331341]
[1755170173517,0.5726865,120960.0,120950.0,0.22379341]
[1755170173719,0.5726865,120960.0,120950.0,1.04275341]
[1755170174720,0.5726865,120960.0,120950.0,1.04275542]
[1755170176016,0.5726865,120960.0,120950.0,1.04063542]
[1755170176321,0.5726865,120960.0,120950.0,1.04031542]
[1755170177211,0.4834365,120960.0,120950.0,1.04031542]
[1755170177412,0.5712165,120960.0,120950.0,0.22379542]
[1755170177612,0.5712165,120960.0,120950.0,1.039876]
[1755170179119,2.0712165,120960.0,120950.0,1.039876]
[1755170179314,1.9834365,120960.0,120950.0,1.039876]
[1755170179515,2.0595465,120960.0,120950.0,1.039876]
[1755170180722,2.0595465,120960.0,120950.0,1.038396]
[1755170181314,2.0595465,120960.0,120950.0,0.223796]
[1755170181614,2.53676299,120960.0,120950.0,1.038356]
[1755170181917,2.0595465,120960.0,120950.0,1.038356]
[1755170186025,2.0595465,120960.0,120950.0,0.223796]
[1755170186225,2.0595465,120960.0,120950.0,1.036836]
[1755170186524,0.1647101,120940.0,120930.0,0.44577256]
[1755170186721,1.04677659,120940.0,120930.0,0.52842786]
[1755170187023,0.8434101,120940.0,120930.0,0.44577256]
[1755170187216,0.8042501,120940.0,120930.0,1.26085256]
[1755170187417,0.7216,120940.0,120930.0,1.26085256]
[1755170187617,0.75375,120940.0,120930.0,1.26085256]
[1755170187921,0.7216,120940.0,120930.0,1.26285256]
[1755170188117,0.7216,120940.0,120930.0,1.188619]
[1755170188316,0.7216,120940.0,120930.0,1.66683549]
[1755170188517,0.3608,120940.0,120930.0,1.66683549]
[1755170188814,0.3608,120940.0,120930.0,1.66799549]
[1755170189821,0.3608,120940.0,120930.0,1.66795549]
[1755170190526,0.3608,120940.0,120930.0,1.74218905]
[1755170191020,1.8608,120940.0,120930.0,1.74218905]
[1755170191526,0.3608,120940.0,120930.0,1.74218905]
[1755170191727,0.3608,120940.0,120930.0,1.74162905]
[1755170192020,0.3608,120940.0,120930.0,0.44877256]
[1755170192221,0.3608,120940.0,120930.0,1.190179]
[1755170192427,0.3608,120940.0,120930.0,1.74162905]
[1755170193024,0.3608,120940.0,120930.0,0.92678905]
[1755170193219,0.3608,120940.0,120930.0,1.74178905]
[1755170193621,0.3608,120940.0,120930.0,1.26457256]
[1755170193827,0.3608,120940.0,120930.0,1.74178905]
[1755170194021,0.3608,120940.0,120930.0,1.74182905]
[1755170194230,0.3608,120940.0,120930.0,1.74130905]
[1755170194526,0.3608,120940.0,120930.0,1.26409256]
[1755170194727,0.3608,120940.0,120930.0,1.74130905]
[1755170195428,0.3608,120940.0,120930.0,1.74050905]
[1755170197836,0.3608,120940.0,120930.0,1.26329256]
[1755170198026,0.3608,120940.0,120930.0,1.74050905]
[1755170198227,0.3608,120940.0,120930.0,1.189059]
[1755170198422,0.3608,120940.0,120930.0,1.68851382]
[1755170198631,0.3608,120940.0,120930.0,1.68727382]
[1755170198824,0.3608,120940.0,120930.0,1.21005733]
[1755170199030,0.3608,120940.0,120930.0,1.67742221]
[1755170199231,0.3608,120940.0,120930.0,1.68711382]
[1755170199632,0.37823,120940.0,120930.0,1.20989733]
[1755170199826,0.45856,120940.0,120930.0,1.20989733]
[1755170200027,0.41071,120940.0,120930.0,0.38708572]
[1755170200231,0.48691,120940.0,120930.0,1.30400771]
[1755170200527,0.48691,120940.0,120930.0,1.20036572]
[1755170201223,0.48691,120940.0,120930.0,1.21005734]
[1755170201934,0.3608,120940.0,120930.0,0.97763582]
[1755170202136,0.3608,120940.0,120930.0,1.68727383]
[1755170202320,0.3608,120940.0,120930.0,0.87399383]
[1755170202526,0.3608,120940.0,120930.0,1.68675383]
[1755170203531,0.3608,120940.0,120930.0,1.67706221]
[1755170206238,0.3608,120940.0,120930.0,1.7807042]
[1755170206436,0.3608,120940.0,120930.0,0.9679442]
[1755170206737,0.3608,120940.0,120930.0,1.67538221]
[1755170207734,0.3608,120940.0,120930.0,1.19816572]
[1755170208034,0.3608,120940.0,120930.0,1.67538221]
[1755170208836,0.3608,120940.0,120930.0,1.75951101]
[1755170209438,0.3608,120940.0,120930.0,0.94839101]
[1755170209632,0.3608,120940.0,120930.0,1.75915101]
[1755170210527,0.3608,120940.0,120930.0,1.75931101]
[1755170211335,0.3608,120940.0,120930.0,0.86430221]
[1755170211536,0.3608,120940.0,120930.0,1.7788642]
[1755170212536,0.3608,120940.0,120930.0,2.9221442]
[1755170214424,0.3608,120940.0,120930.0,2.93183574]
[1755170215635,0.3608,120940.0,120930.0,3.00622949]
[1755170216138,0.3608,120940.0,120930.0,2.9025875]
[1755170216340,0.3608,120940.0,120930.0,2.0916675]
[1755170216538,0.3608,120940.0,120930.0,2.9012275]
[1755170218027,0.3608,120940.0,120930.0,2.0916675]
[1755170218231,0.3608,120940.0,120930.0,2.82703375]
[1755170218633,0.43645,120940.0,120930.0,2.9014444]
[1755170218840,0.43645,120940.0,120930.0,2.90158668]
[1755170219740,0.41037,120940.0,120930.0,2.42437019]
[1755170220039,0.41037,120940.0,120930.0,2.90158668]
[1755170220236,0.47055,120940.0,120930.0,1.61461019]
[1755170220537,0.96406649,120940.0,120930.0,1.61461019]
[1755170220736,0.96406649,120940.0,120930.0,2.37934153]
[1755170220938,0.5695,120940.0,120930.0,2.37934153]
[1755170221136,0.5695,120940.0,120930.0,2.45251153]
[1755170221137,0.49506691,120940.0,120930.0,2.45251153]
[1755170221343,0.49426691,120940.0,120930.0,2.45251153]
[1755170221641,0.48605,120940.0,120930.0,1.63377999]
[1755170221941,0.48605,120940.0,120930.0,2.44385999]
[1755170222333,0.3608,120940.0,120930.0,2.92107648]
[1755170222527,0.3608,120940.0,120930.0,2.92087648]
[1755170222732,0.3608,120940.0,120930.0,2.92079648]
[1755170222941,0.43645,120940.0,120930.0,2.92079648]
[1755170223742,0.43645,120940.0,120930.0,2.44357999]
[1755170223944,0.41037,120940.0,120930.0,2.92079648]
[1755170224138,0.3608,120940.0,120930.0,2.92079648]
[1755170224345,0.3608,120940.0,120930.0,2.01704647]
[1755170224535,0.3608,120940.0,120930.0,2.82716647]
[1755170224734,0.3608,120940.0,120930.0,2.01704647]